fUSD/lending_fUSD_20250117
["ID","MTS","AMOUNT","RATE_DAILY","PERIOD"]
[349297267,1737105041231,-500.0,0.00024999,2]
[349297268,1737105041242,-500.0,0.00024999,2]
[349297269,1737105041252,-500.0,0.00024999,2]
[349297270,1737105041261,-500.0,0.00024999,2]
[349297271,1737105041271,-462.56,0.00024999,2]
[349297272,1737105041280,-500.0,0.00024999,2]
[349297273,1737105041289,-500.0,0.00024999,2]
[349297274,1737105041298,-500.0,0.00024999,2]
[349297275,1737105041307,-500.0,0.00024999,2]
[349297276,1737105041317,-500.0,0.00024999,2]
[349297277,1737105041327,-500.0,0.00024999,2]
[349297278,1737105041337,-500.0,0.00024999,2]
[349297279,1737105041346,-500.0,0.00024999,2]
[349297280,1737105041355,-518.06,0.00024999,2]
[349297281,1737105041364,-500.0,0.00024999,2]
[349297282,1737105041374,-500.0,0.00024999,2]
[349297283,1737105041387,-554.03,0.00024999,2]
[349297284,1737105041397,-500.0,0.00024999,2]
[349297285,1737105041406,-500.0,0.00024999,2]
[349297286,1737105041416,-554.03,0.00024999,2]
[349297287,1737105041426,-557.40402615,0.00024999,2]
[349297288,1737105041436,-500.0,0.00024999,2]
[349297289,1737105041445,-554.03,0.00024999,2]
[349297290,1737105041454,-500.0,0.00024999,2]
[349297291,1737105041463,-554.03,0.00024999,2]
[349297292,1737105041473,-554.03,0.00024999,2]
[349297293,1737105041485,-500.0,0.00024999,2]
[349297294,1737105041495,-554.03,0.00024999,2]
[349297295,1737105041504,-554.03,0.00024999,2]
[349297296,1737105041513,-554.03,0.00024999,2]
[349297297,1737105041522,-554.03,0.00024999,2]
[349297298,1737105041531,-554.03,0.00024999,2]
[349297299,1737105041540,-554.03,0.00024999,2]
[349297300,1737105041550,-554.03,0.00024999,2]
[349297301,1737105041559,-554.03,0.00024999,2]
[349297302,1737105041568,-554.03,0.00024999,2]
[349297303,1737105041577,-554.03,0.00024999,2]
[349297304,1737105041586,-269.79027957,0.00024999,2]
[349297305,1737105041595,-500.0,0.00024999,2]
[349297306,1737105041605,-500.0,0.00024999,2]
[349297307,1737105041614,-500.0,0.00024999,2]
[349297308,1737105041623,-245.52,0.00024999,2]
[349297309,1737105041632,-500.0,0.00024999,2]
[349297310,1737105041641,-500.0,0.00024999,2]
[349297311,1737105041652,-500.0,0.00024999,2]
[349297312,1737105041661,-500.0,0.00024999,2]
[349297313,1737105041671,-500.0,0.00024999,2]
[349297314,1737105041680,-500.0,0.00024999,2]
[349297315,1737105041690,-500.0,0.00024999,2]
[349297316,1737105041699,-500.0,0.00024999,2]
[349297317,1737105041708,-500.0,0.00024999,2]
[349297318,1737105041718,-500.0,0.00024999,2]
[349297319,1737105041727,-500.0,0.00024999,2]
[349297320,1737105041736,-500.0,0.00024999,2]
[349297321,1737105041746,-500.0,0.00024999,2]
[349297322,1737105041755,-1000.0,0.00024999,2]
[349297323,1737105041767,-500.0,0.00024999,2]
[349297324,1737105041777,-1000.0,0.00024999,2]
[349297325,1737105041788,-500.0,0.00024999,2]
[349297326,1737105041798,-1000.0,0.00024999,2]
[349297327,1737105041807,-500.0,0.00024999,2]
[349297328,1737105041816,-1000.0,0.00024999,2]
[349297329,1737105041825,-500.0,0.00024999,2]
[349297330,1737105041835,-500.0,0.00024999,2]
[349297331,1737105041845,-347.74840665,0.00024999,2]
[349297332,1737105041854,-500.0,0.00024999,2]
[349297333,1737105041863,-500.0,0.00024999,2]
[349297334,1737105041873,-500.0,0.00024999,2]
[349297335,1737105041882,-500.0,0.00024999,2]
[349297336,1737105041891,-500.0,0.00024999,2]
[349297337,1737105041903,-500.0,0.00024999,2]
[349297338,1737105041912,-500.0,0.00024999,2]
[349297339,1737105041922,-500.0,0.00024999,2]
[349297340,1737105041931,-500.0,0.00024999,2]
[349297341,1737105041941,-500.0,0.00024999,2]
[349297342,1737105041951,-500.0,0.00024999,2]
[349297343,1737105041960,-500.0,0.00024999,2]
[349297344,1737105041969,-500.0,0.00024999,2]
[349297345,1737105041978,-500.0,0.00024999,2]
[349297346,1737105041987,-500.0,0.00024999,2]
[349297347,1737105041996,-500.0,0.00024999,2]
[349297348,1737105042005,-500.0,0.00024999,2]
[349297349,1737105042014,-500.0,0.00024999,2]
[349297350,1737105042023,-500.0,0.00024999,2]
[349297351,1737105042033,-500.0,0.00024999,2]
[349297352,1737105042043,-500.0,0.00024999,2]
[349297353,1737105042052,-500.0,0.00024999,2]
[349297354,1737105042062,-500.0,0.00024999,2]
[349297355,1737105042071,-199.33595289,0.00024999,2]
[349297356,1737105042081,-500.0,0.00024999,2]
[349297357,1737105042090,-500.0,0.00024999,2]
[349297358,1737105042100,-500.0,0.00024999,2]
[349297359,1737105042110,-500.0,0.00024999,2]
[349297360,1737105042120,-500.0,0.00024999,2]
[349297361,1737105042129,-500.0,0.00024999,2]
[349297362,1737105042139,-500.0,0.00024999,2]
[349297363,1737105042150,-500.0,0.00024999,2]
[349297364,1737105042159,-500.0,0.00024999,2]
[349297365,1737105042169,-500.0,0.00024999,2]
[349297366,1737105042178,-318.28,0.00024999,2]
[349297367,1737105042187,-500.0,0.00024999,2]
[349297368,1737105042196,-500.0,0.00024999,2]
[349297369,1737105042205,-500.0,0.00024999,2]
[349297370,1737105042214,-500.0,0.00024999,2]
[349297371,1737105042223,-500.0,0.00024999,2]
[349297372,1737105042232,-500.0,0.00024999,2]
[349297373,1737105042242,-500.0,0.00024999,2]
[349297374,1737105042251,-500.0,0.00024999,2]
[349297375,1737105042260,-355.75623881,0.00024999,2]
[349297376,1737105042270,-500.0,0.00024999,2]
[349297377,1737105042288,-500.0,0.00024999,2]
[349297378,1737105042298,-612.42,0.00024999,2]
[349297379,1737105042307,-500.0,0.00024999,2]
[349297380,1737105042317,-500.0,0.00024999,2]
[349297381,1737105042326,-500.0,0.00024999,2]
[349297382,1737105042336,-500.0,0.00024999,2]
[349297383,1737105042346,-500.0,0.00024999,2]
[349297384,1737105042355,-500.0,0.00024999,2]
[349297385,1737105042365,-500.0,0.00024999,2]
[349297386,1737105042375,-500.0,0.00024999,2]
[349297387,1737105042388,-500.0,0.00024999,2]
[349297388,1737105042398,-500.0,0.00024999,2]
[349297389,1737105042407,-500.0,0.00024999,2]
[349297390,1737105042417,-500.0,0.00024999,2]
[349297391,1737105042427,-500.0,0.00024999,2]
[349297392,1737105042437,-500.0,0.00024999,2]
[349297393,1737105042447,-500.0,0.00024999,2]
[349297394,1737105042459,-500.0,0.00024999,2]
[349297395,1737105042468,-500.0,0.00024999,2]
[349297396,1737105042478,-500.0,0.00024999,2]
[349297397,1737105042487,-500.0,0.00024999,2]
[349297398,1737105042496,-500.0,0.00024999,2]
[349297399,1737105042506,-500.0,0.00024999,2]
[349297400,1737105042515,-500.0,0.00024999,2]
[349297401,1737105042525,-500.0,0.00024999,2]
[349297402,1737105042534,-500.0,0.00024999,2]
[349297403,1737105042543,-500.0,0.00024999,2]
[349297404,1737105042553,-500.0,0.00024999,2]
[349297405,1737105042562,-203.68,0.00024999,2]
[349297406,1737105042571,-500.0,0.00024999,2]
[349297407,1737105042581,-500.0,0.00024999,2]
[349297408,1737105042590,-500.0,0.00024999,2]
[349297409,1737105042599,-500.0,0.00024999,2]
[349297410,1737105042608,-500.0,0.00024999,2]
[349297411,1737105042617,-500.0,0.00024999,2]
[349297412,1737105042627,-489.48,0.00024999,2]
[349297413,1737105042636,-500.0,0.00024999,2]
[349297414,1737105042647,-500.0,0.00024999,2]
[349297417,1737105042656,-500.0,0.00024999,2]
[349297419,1737105042666,-500.0,0.00024999,2]
[349297421,1737105042675,-500.0,0.00024999,2]
[349297423,1737105042684,-500.0,0.00024999,2]
[349297425,1737105042693,-500.0,0.00024999,2]
[349297428,1737105042703,-500.0,0.00024999,2]
[349297430,1737105042712,-500.0,0.00024999,2]
[349297431,1737105042722,-500.0,0.00024999,2]
[349297434,1737105042731,-500.0,0.00024999,2]
[349297436,1737105042740,-500.0,0.00024999,2]
[349297439,1737105042749,-500.0,0.00024999,2]
[349297442,1737105042758,-500.0,0.00024999,2]
[349297444,1737105042768,-328.12,0.00024999,2]
[349297445,1737105042777,-500.0,0.00024999,2]
[349297446,1737105042786,-500.0,0.00024999,2]
[349297447,1737105042796,-500.0,0.00024999,2]
[349297448,1737105042805,-240.03,0.00024999,2]
[349297449,1737105042814,-500.0,0.00024999,2]
[349297450,1737105042823,-500.0,0.00024999,2]
[349297451,1737105042832,-500.0,0.00024999,2]
[349297452,1737105042841,-500.0,0.00024999,2]
[349297453,1737105042851,-500.0,0.00024999,2]
[349297454,1737105042860,-300.68,0.00024999,2]
[349297455,1737105042869,-500.0,0.00024999,2]
[349297456,1737105042878,-500.0,0.00024999,2]
[349297457,1737105042888,-260.02957553,0.00024999,2]
[349297458,1737105042898,-500.0,0.00024999,2]
[349297459,1737105042906,-500.0,0.00024999,2]
[349297460,1737105042915,-500.0,0.00024999,2]
[349297461,1737105042924,-500.0,0.00024999,2]
[349297462,1737105042933,-500.0,0.00024999,2]
[349297463,1737105042942,-500.0,0.00024999,2]
[349297464,1737105042950,-500.0,0.00024999,2]
[349297465,1737105042959,-500.0,0.00024999,2]
[349297466,1737105043125,-500.0,0.00024999,2]
[349297467,1737105043134,-500.0,0.00024999,2]
[349297468,1737105043144,-427.72,0.00024999,2]
[349297469,1737105043154,-500.0,0.00024999,2]
[349297470,1737105043164,-500.0,0.00024999,2]
[349297471,1737105043173,-500.0,0.00024999,2]
[349297472,1737105043183,-500.0,0.00024999,2]
[349297473,1737105043193,-500.0,0.00024999,2]
[349297474,1737105043202,-542.29,0.00024999,2]
[349297476,1737105043212,-500.0,0.00024999,2]
[349297478,1737105043222,-500.0,0.00024999,2]
[349297480,1737105043231,-500.0,0.00024999,2]
[349297481,1737105043241,-500.0,0.00024999,2]
[349297482,1737105043250,-500.0,0.00024999,2]
[349297483,1737105043259,-500.0,0.00024999,2]
[349297484,1737105043269,-500.0,0.00024999,2]
[349297485,1737105043279,-500.0,0.00024999,2]
[349297486,1737105043288,-500.0,0.00024999,2]
[349297487,1737105043298,-500.0,0.00024999,2]
[349297488,1737105043308,-500.0,0.00024999,2]
[349297489,1737105043318,-500.0,0.00024999,2]
[349297490,1737105043328,-500.0,0.00024999,2]
[349297491,1737105043338,-500.0,0.00024999,2]
[349297492,1737105043348,-500.0,0.00024999,2]
[349297493,1737105043358,-500.0,0.00024999,2]
[349297494,1737105043368,-500.0,0.00024999,2]
[349297495,1737105043382,-500.0,0.00024999,2]
[349297496,1737105043398,-500.0,0.00024999,2]
[349297497,1737105043408,-610.87163069,0.00024999,2]
[349297498,1737105043417,-500.0,0.00024999,2]
[349297499,1737105043430,-500.0,0.00024999,2]
[349297500,1737105043440,-500.0,0.00024999,2]
[349297501,1737105043450,-500.0,0.00024999,2]
[349297502,1737105043461,-500.0,0.00024999,2]
[349297503,1737105043472,-366.50826544,0.00024999,2]
[349297504,1737105043482,-257.26547402,0.00024999,2]
[349297505,1737105043492,-500.0,0.00024999,2]
[349297506,1737105043502,-500.0,0.00024999,2]
[349297507,1737105043512,-500.0,0.00024999,2]
[349297508,1737105043522,-500.0,0.00024999,2]
[349297509,1737105043531,-500.0,0.00024999,2]
[349297510,1737105043543,-500.0,0.00024999,2]
[349297511,1737105043555,-600.01164676,0.00024999,2]
[349297512,1737105043564,-500.0,0.00024999,2]
[349297513,1737105043574,-500.0,0.00024999,2]
[349297514,1737105043583,-500.0,0.00024999,2]
[349297515,1737105043593,-500.0,0.00024999,2]
[349297516,1737105043604,-500.0,0.00024999,2]
[349297517,1737105043614,-500.0,0.00024999,2]
[349297518,1737105043624,-500.0,0.00024999,2]
[349297519,1737105043634,-500.0,0.00024999,2]
[349297520,1737105043644,-391.17,0.00024999,2]
[349297521,1737105043655,-500.0,0.00024999,2]
[349297522,1737105043665,-500.0,0.00024999,2]
[349297523,1737105043689,-1362.63,0.00024999,2]
[349297524,1737105043717,-184.23,0.00024999,2]
[349297525,1737105043727,-1362.63,0.00024999,2]
[349297526,1737105043735,-500.0,0.00024999,2]
[349297527,1737105043745,-1362.63,0.00024999,2]
[349297528,1737105043754,-639.38,0.00024999,2]
[349297529,1737105043763,-1362.63,0.00024999,2]
[349297530,1737105043772,-1362.63,0.00024999,2]
[349297531,1737105043781,-1362.63,0.00024999,2]
[349297532,1737105043792,-1362.63,0.00024999,2]
[349297533,1737105043802,-1362.63,0.00024999,2]
[349297534,1737105043811,-1362.63,0.00024999,2]
[349297535,1737105043822,-1362.63,0.00024999,2]
[349297536,1737105043832,-1362.63,0.00024999,2]
[349297537,1737105043841,-1362.63,0.00024999,2]
[349297538,1737105043851,-1362.63,0.00024999,2]
[349297539,1737105043861,-1362.63,0.00024999,2]
[349297540,1737105043871,-1362.63,0.00024999,2]
[349297541,1737105043881,-1362.63,0.00024999,2]
[349297542,1737105043890,-1362.63,0.00024999,2]
[349297543,1737105043901,-1362.63,0.00024999,2]
[349297544,1737105043911,-1362.63,0.00024999,2]
[349297545,1737105043920,-1362.63,0.00024999,2]
[349297546,1737105043930,-500.0,0.00024999,2]
[349297547,1737105043939,-1362.69718413,0.00024999,2]
[349297548,1737105043948,-500.0,0.00024999,2]
[349297549,1737105043958,-500.0,0.00024999,2]
[349297550,1737105043967,-500.0,0.00024999,2]
[349297551,1737105043976,-500.0,0.00024999,2]
[349297552,1737105043986,-500.0,0.00024999,2]
[349297553,1737105043996,-500.0,0.00024999,2]
[349297554,1737105044005,-409.9,0.00024999,2]
[349297555,1737105044015,-500.0,0.00024999,2]
[349297556,1737105044024,-500.0,0.00024999,2]
[349297557,1737105044033,-500.0,0.00024999,2]
[349297558,1737105044043,-500.0,0.00024999,2]
[349297559,1737105044052,-500.0,0.00024999,2]
[349297560,1737105044062,-500.0,0.00024999,2]
[349297561,1737105044072,-154.92358255,0.00024999,2]
[349297562,1737105044081,-24858.68060864,0.00024999,9]
[349297563,1737105044261,-54718.18664357,0.00024999,9]
[349297564,1737105044272,-1022.1,0.00024999,9]
[349297565,1737105044471,-345.307038,0.000249,2]
[349297566,1737105044480,-345.307038,0.000249,2]
[349297567,1737105044489,-500.0,0.00024998,2]
[349297568,1737105044498,-500.0,0.00024999,2]
[349297569,1737105044507,-523.49,0.00024999,2]
[349297570,1737105044516,-5010.79718582,0.00024999,9]
[349297571,1737105044527,-1955202.95990267,0.00024999,9]
[349297572,1737105044536,-9693764.43993713,0.00025,30]
[349297573,1737105044548,-294.29578234,0.00025,30]
[349297574,1737105044559,-500.0,0.00025,30]
[349297575,1737105044570,-496.536104,0.00025,30]
[349297576,1737105044605,-500.84428097,0.00025,30]
[349297577,1737105044616,-34000.0000001,0.00025,30]
[349297578,1737105044712,-1410.084,0.00025,30]
[349297579,1737105044727,-10135.65826404,0.00025,30]
[349297580,1737105044737,-38924.15585297,0.00025,30]
[349297581,1737105044756,-526.88807791,0.00025,30]
[349297582,1737105044768,-5121.222,0.00025,30]
[349297583,1737105044779,-5899.43919302,0.00025,30]
[349297584,1737105044790,-3389.38780318,0.00025,30]
[349297585,1737105044817,-2490009.50995235,0.00025,30]
[349297586,1737105044828,-1259.34392676,0.00025,30]
[349297587,1737105044944,-345.307038,0.000249,2]
[349297588,1737105044954,-3529.42686035,0.00025,30]
[349297589,1737105044984,-27244.0,0.00025,30]
[349297590,1737105045002,-343.61996475,0.00025,30]
[349297594,1737105045771,-500.0,0.00024,7]
[349297595,1737105045782,-500.0,0.00024,7]
[349297596,1737105045792,-500.0,0.00024,7]
[349297597,1737105045802,-221.709549,0.00024998,2]
[349297598,1737105045811,-169.102101,0.00024999,2]
[349297600,1737105045834,-52.607448,0.00024999,2]
[349297602,1737105045843,-2162.3879711,0.00025,30]
[349297604,1737105045855,-510.705,0.00025,30]
[349297608,1737105045886,-863.59999996,0.00025,30]
[349297613,1737105045997,-813.5999925,0.00025,30]
[349297614,1737105046052,-13665.65549439,0.00025,30]
[349297615,1737105046063,-40962.39989323,0.00025,30]
[349297616,1737105046075,-858.9594683,0.00025,30]
[349297617,1737105046109,-1044.30256171,0.00025,30]
[349297619,1737105381225,255.0,0.000231,120]
[349297622,1737105513739,174.1,0.00010137,2]
[349297623,1737105730493,2800.0,0.000232,30]
[349297625,1737105900115,-178.89,0.00012329,2]
[349297626,1737105900139,-174.1,0.00016813,2]
[349297627,1737105900162,-165.25,0.00019257,2]
[349297628,1737105908579,6721.76,0.00012,2]
[349297629,1737105908607,47300.68307667,0.00012,2]
[349297630,1737105955046,9461.19463858,6.94e-05,2]
[349297631,1737106045232,-453.79691383,0.00014888,2]
[349297632,1737106045253,-1078.53746128,0.000154,2]
[349297633,1737106045274,-8.58514324,0.00016712,2]
[349297635,1737106108361,374.75532531,7.888e-05,2]
[349297636,1737106149096,-193.85485676,0.00016712,2]
[349297637,1737106149118,-2639.76153724,0.0001791,2]
[349297638,1737106166120,-1971.20589676,0.0001791,2]
[349297639,1737106166142,-1665.60294519,0.00018,3]
[349297640,1737106166168,-1696.27346401,0.000181,2]
[349297641,1737106166191,-521.3999819,0.000181,2]
[349297642,1737106166212,-199.0,0.00018899,2]
[349297643,1737106166234,-25547.28423972,0.000189,2]
[349297644,1737106166256,-150.0,0.00018999,2]
[349297645,1737106166279,-53440.52662965,0.00019,2]
[349297646,1737106166302,-961.61,0.00019,2]
[349297647,1737106166328,-7337.24022723,0.00019,2]
[349297652,1737106197744,5030.70647773,0.000232,30]
[349297661,1737106232170,-1190.87951664,0.00019,2]
[349297662,1737106232185,-1022.1,0.00019,2]
[349297663,1737106232198,-764.56593822,0.00019,2]
[349297664,1737106232214,-1000.0,0.0001902,2]
[349297665,1737106232223,-640.53406178,0.0001911,2]
[349297666,1737106232308,-4418.04421827,0.0001911,2]
[349297667,1737106232318,-2737.92650817,0.000195,2]
[349297668,1737106232369,-600.0,0.000195,2]
[349297669,1737106232382,-518.94,0.000195,2]
[349297670,1737106232394,-375.839991,0.000195,2]
[349297671,1737106232429,-2929.07558882,0.000195,2]
[349297672,1737106232491,-365.69450967,0.000195,2]
[349297673,1737106232503,-30616.89504754,0.000195,2]
[349297674,1737106232513,-1955.52794508,0.0002025,2]
[349297675,1737106232522,-763.8,0.00022166,2]
[349297676,1737106232532,-669.47883399,0.00022498,2]
[349297677,1737106232542,-583.0,0.00023,2]
[349297678,1737106232551,-200.0,0.00023084,2]
[349297679,1737106232561,-200.09641628,0.00023084,2]
[349297680,1737106232570,-159.46586331,0.0002339,2]
[349297681,1737106232580,-11638.14,0.00023442,2]
[349297682,1737106232590,-174.1,0.0002349,2]
[349297683,1737106232599,-231.1,0.00023575,2]
[349297684,1737106232608,-500.0,0.000236,2]
[349297685,1737106232617,-310.5,0.00023604,2]
[349297686,1737106232627,-676.9985845,0.00023677,2]
[349297687,1737106232636,-1019.70107321,0.00023677,2]
[349297688,1737106232645,-2000.0,0.00023677,2]
[349297689,1737106232655,-829.66,0.00023681,2]
[349297690,1737106232665,-1000.0,0.0002371,2]
[349297691,1737106232675,-250.0,0.0002373,2]
[349297692,1737106232684,-169.62,0.00023745,2]
[349297693,1737106232694,-957.54,0.00023826,2]
[349297694,1737106232703,-250.0,0.00023827,2]
[349297695,1737106232713,-320.66,0.00023967,2]
[349297696,1737106232724,-500.0,0.00024,7]
[349297697,1737106232737,-500.0,0.00024,7]
[349297698,1737106232749,-500.0,0.00024,7]
[349297699,1737106232759,-500.0,0.00024,7]
[349297700,1737106232769,-500.0,0.00024,7]
[349297701,1737106232780,-500.0,0.00024,7]
[349297702,1737106232790,-500.0,0.00024,7]
[349297703,1737106232800,-500.0,0.00024,7]
[349297704,1737106232809,-500.0,0.00024,7]
[349297705,1737106232822,-398.23,0.00024,7]
[349297706,1737106232832,-500.0,0.00024,7]
[349297707,1737106232840,-500.0,0.00024,7]
[349297708,1737106232850,-500.0,0.00024,7]
[349297709,1737106232859,-500.0,0.00024,7]
[349297710,1737106232871,-500.0,0.00024,7]
[349297711,1737106232881,-500.0,0.00024,7]
[349297712,1737106232891,-500.0,0.00024,7]
[349297713,1737106232902,-500.0,0.00024,7]
[349297714,1737106232911,-500.0,0.00024,7]
[349297715,1737106232921,-273.38,0.00024,7]
[349297716,1737106232931,-1622.057,0.00024011,5]
[349297717,1737106232941,-618.84,0.00024084,2]
[349297718,1737106232950,-171.49,0.00024084,2]
[349297719,1737106232961,-250.0,0.00024084,2]
[349297720,1737106232970,-772.46,0.00024384,2]
[349297721,1737106232980,-772.46,0.00024384,2]
[349297722,1737106232990,-772.46,0.00024384,2]
[349297723,1737106232999,-784.64,0.00024384,2]
[349297724,1737106233009,-827.17,0.00024384,2]
[349297725,1737106233019,-763.8,0.0002443,2]
[349297726,1737106233029,-150.0,0.000245,2]
[349297727,1737106233039,-1000.0,0.00024657,14]
[349297728,1737106233049,-284.60346781,0.000247,2]
[349297729,1737106233058,-150.0,0.00024735,2]
[349297730,1737106233068,-150.0,0.00024744,2]
[349297731,1737106233077,-150.0,0.00024752,2]
[349297732,1737106233087,-1562.3109,0.00024798,2]
[349297733,1737106233098,-500.0,0.000248,2]
[349297734,1737106233108,-150.0,0.00024819,2]
[349297735,1737106233119,-150.0,0.00024822,2]
[349297736,1737106233130,-150.0,0.00024824,2]
[349297737,1737106233139,-150.0,0.00024826,2]
[349297738,1737106233150,-295.1546555,0.0002483,2]
[349297739,1737106233160,-150.0,0.00024835,2]
[349297740,1737106233170,-150.0,0.00024851,2]
[349297741,1737106233180,-320.66,0.00024854,2]
[349297742,1737106233191,-150.0,0.00024862,2]
[349297743,1737106233201,-150.0,0.00024864,2]
[349297744,1737106233211,-150.0,0.00024869,2]
[349297745,1737106233228,-150.0,0.00024877,2]
[349297746,1737106233238,-150.0,0.00024879,2]
[349297747,1737106233248,-1463.581,0.00024896,2]
[349297748,1737106233258,-4442.4493,0.00024897,2]
[349297749,1737106233268,-1979.3247,0.00024897,2]
[349297750,1737106233278,-500.0,0.00024897,2]
[349297751,1737106233290,-500.0,0.00024897,2]
[349297752,1737106233300,-500.0,0.00024897,2]
[349297753,1737106233310,-500.0,0.00024897,2]
[349297754,1737106233320,-632.91914989,0.00024897,2]
[349297755,1737106233330,-150.0,0.00024897,2]
[349297756,1737106233340,-500.0,0.00024898,2]
[349297757,1737106233350,-500.0,0.00024898,2]
[349297758,1737106233360,-500.0,0.00024898,2]
[349297759,1737106233371,-500.0,0.00024898,2]
[349297760,1737106233382,-500.0,0.00024898,2]
[349297761,1737106233393,-500.0,0.00024898,2]
[349297762,1737106233403,-500.0,0.00024898,2]
[349297763,1737106233413,-451.16921722,0.00024898,2]
[349297764,1737106233427,-48.83078278,0.00024898,2]
[349297765,1737106233437,-222.66921722,0.00024898,2]
[349297776,1737106238016,-277.33078278,0.00024898,2]
[349297777,1737106238028,-500.0,0.00024898,2]
[349297778,1737106238039,-500.0,0.00024898,2]
[349297779,1737106238051,-500.0,0.00024898,2]
[349297780,1737106238063,-500.0,0.00024898,2]
[349297781,1737106238074,-500.0,0.00024898,2]
[349297782,1737106238085,-500.0,0.00024898,2]
[349297783,1737106238096,-142.39728816,0.00024898,2]
[349297784,1737106238110,-357.60271184,0.00024898,2]
[349297785,1737106238122,-500.0,0.00024898,2]
[349297786,1737106238135,-500.0,0.00024898,2]
[349297787,1737106238146,-500.0,0.00024898,2]
[349297788,1737106238157,-111.8528492,0.00024898,2]
[349297789,1737106238171,-388.1471508,0.00024898,2]
[349297790,1737106238183,-500.0,0.00024898,2]
[349297791,1737106238197,-500.0,0.00024898,2]
[349297792,1737106238208,-500.0,0.00024898,2]
[349297793,1737106238219,-500.0,0.00024898,2]
[349297794,1737106238230,-500.0,0.00024898,2]
[349297795,1737106238242,-500.0,0.00024898,2]
[349297796,1737106238253,-500.0,0.00024898,2]
[349297797,1737106238265,-500.0,0.00024898,2]
[349297798,1737106238276,-500.0,0.00024898,2]
[349297799,1737106238288,-500.0,0.00024898,2]
[349297800,1737106238299,-500.0,0.00024898,2]
[349297801,1737106238310,-107.28841726,0.00024898,2]
[349297802,1737106238323,-444.65664697,0.00024898,2]
[349297803,1737106238335,-500.0,0.00024898,2]
[349297804,1737106238346,-500.0,0.00024898,2]
[349297805,1737106238357,-500.0,0.00024898,2]
[349297806,1737106238368,-742.82546387,0.00024898,2]
[349297807,1737106238380,-500.0,0.00024898,2]
[349297808,1737106238392,-500.0,0.00024898,2]
[349297809,1737106238404,-177.3811,0.00024898,2]
[349297810,1737106238415,-220.0,0.00024898,2]
[349297811,1737106238427,-500.0,0.00024898,2]
[349297812,1737106238438,-5000.0,0.00024898,2]
[349297813,1737106238449,-173.88482321,0.00024899,2]
[349297814,1737106238461,-500.0,0.00024899,2]
[349297815,1737106238472,-500.0,0.00024899,2]
[349297816,1737106238483,-500.0,0.00024899,2]
[349297817,1737106238495,-500.0,0.00024899,2]
[349297818,1737106238505,-500.0,0.00024899,2]
[349297819,1737106238517,-500.0,0.00024899,2]
[349297820,1737106238528,-500.0,0.00024899,2]
[349297822,1737106238539,-500.0,0.00024899,2]
[349297824,1737106238551,-500.0,0.00024899,2]
[349297825,1737106238562,-500.0,0.00024899,2]
[349297826,1737106238573,-500.0,0.00024899,2]
[349297827,1737106238584,-500.0,0.00024899,2]
[349297828,1737106238595,-500.0,0.00024899,2]